bitfinex/quotes_ETHUSD_20250620
["timestamp","ask_amount","ask_price","bid_price","bid_amount"]
[1750449797572,27.212,2422.3,2422.2,4.95657824]
[1750449797771,27.212,2422.3,2422.2,7.17827824]
[1750449798609,9.911,2422.3,2422.2,8.30896702]
[1750449798927,9.911,2422.3,2422.2,8.35066702]
[1750449798928,19.203,2422.3,2422.2,8.35066702]
[1750449799271,19.203,2422.3,2422.2,8.30896702]
[1750449800523,10.058,2423.1,2423.0,4.12711514]
[1750449800690,20.11720508,2423.1,2423.0,4.12711514]
[1750449801384,10.05919308,2423.1,2423.0,4.12711514]
[1750449801706,20.11717699,2423.1,2423.0,4.12711514]
[1750449801872,19.348,2423.1,2423.0,4.12711514]
[1750449802078,19.73258036,2423.1,2423.0,4.12711514]
[1750449802425,19.348,2423.1,2423.0,4.12711514]
[1750449802594,19.67258517,2423.1,2423.0,4.12711514]
[1750449802781,20.0571689,2423.1,2423.0,4.12711514]
[1750449803289,10.05715344,2423.1,2423.0,4.12711514]
[1750449803495,10.05615344,2423.1,2423.0,4.12711514]
[1750449803697,0.38457851,2423.1,2423.0,4.87961514]
[1750449803999,9.278,2423.1,2423.0,5.78030491]
[1750449805393,9.6625417,2423.1,2423.0,4.12711514]
[1750449805717,9.278,2423.1,2423.0,4.12711514]
[1750449806010,9.914,2423.2,2423.1,4.12694482]
[1750449806212,19.95906644,2423.2,2423.1,4.12694482]
[1750449806382,19.57453322,2423.2,2423.1,4.12694482]
[1750449806775,19.57452455,2423.2,2423.1,4.12694482]
[1750449806978,19.95905194,2423.2,2423.1,4.12694482]
[1750449807175,19.57452739,2423.2,2423.1,4.12694482]
[1750449807617,19.95902948,2423.2,2423.1,4.12694482]
[1750449807915,19.57452739,2423.2,2423.1,4.12694482]
[1750449809116,19.57450773,2423.2,2423.1,4.12694482]
[1750449809918,19.57441541,2423.2,2423.1,4.12694482]
[1750449811779,22.05641541,2423.2,2423.1,4.12694482]
[1750449811983,19.57447203,2423.2,2423.1,4.12694482]
[1750449812622,19.57447243,2423.2,2423.1,4.12694482]
[1750449813112,19.57447984,2423.2,2423.1,4.12694482]
[1750449814312,19.57448605,2423.2,2423.1,4.12694482]
[1750449814530,19.57448516,2423.2,2423.1,4.12694482]
[1750449815021,19.57448486,2423.2,2423.1,4.12694482]
[1750449815517,19.248,2423.2,2423.1,4.12694482]
[1750449815727,19.63248722,2423.2,2423.1,4.12694482]
[1750449816120,19.248,2423.2,2423.1,4.12694482]
[1750449816313,19.63253967,2423.2,2423.1,4.12694482]
[1750449816823,19.63241713,2423.2,2423.1,4.12694482]
[1750449817595,19.57441713,2423.2,2423.1,4.12694482]
[1750449817801,19.57441513,2423.2,2423.1,4.12694482]
[1750449818324,10.29841513,2423.2,2423.1,4.12694482]
[1750449818525,19.56341513,2423.2,2423.1,4.12694482]
[1750449819219,10.29848004,2423.2,2423.1,6.34864482]
[1750449819411,19.56348004,2423.2,2423.1,7.39622082]
[1750449819608,19.178,2423.2,2423.1,7.43792082]
[1750449819813,10.0,2423.6,2423.5,4.12626366]
[1750449820015,20.0326141,2423.6,2423.5,4.12626366]
[1750449820216,20.03261439,2423.6,2423.5,4.12626366]
[1750449820741,20.09061276,2423.6,2423.5,4.12626366]
[1750449821495,2.80761254,2423.6,2423.5,4.12626366]
[1750449821726,10.09061254,2423.6,2423.5,4.12626366]
[1750449821922,9.70630638,2423.6,2423.5,4.12626366]
[1750449822147,9.70628825,2423.6,2423.5,4.12626366]
[1750449822362,9.70628645,2423.6,2423.5,4.12626366]
[1750449822927,10.09088523,2423.6,2423.5,4.12626366]
[1750449823136,2.74988523,2423.6,2423.5,4.12626366]
[1750449823341,10.02988523,2423.6,2423.5,4.12626366]
[1750449823543,10.0301922,2423.6,2423.5,4.12626366]
[1750449824039,9.6455961,2423.6,2423.5,4.12626366]
[1750449824226,10.08819044,2423.6,2423.5,4.12626366]
[1750449824428,12.16740797,2423.6,2423.3,6.34825915]
[1750449824627,0.058,2423.4,2423.3,6.34826103]
[1750449824860,7.7215961,2423.4,2423.3,6.34826103]
[1750449825559,8.10705823,2423.4,2423.3,6.34826103]
[1750449825777,8.04992403,2423.4,2423.3,6.34826103]
[1750449826278,0.77092403,2423.4,2423.3,6.34826103]
[1750449826494,0.77091643,2423.4,2423.3,8.2280639]
[1750449826655,8.04791643,2423.4,2423.3,8.2280639]
[1750449827348,0.77091643,2423.4,2423.3,8.2280639]
[1750449827540,8.04791643,2423.4,2423.3,8.2280639]
[1750449827954,8.04791643,2423.4,2423.3,7.18056103]
[1750449828585,8.04862574,2423.4,2423.3,6.34826103]
[1750449829281,7.277,2423.4,2423.3,6.34826103]
[1750449829435,8.04933126,2423.4,2423.3,6.34826103]
[1750449829640,8.04933113,2423.4,2423.3,6.34826103]
[1750449829845,8.10973113,2423.4,2423.3,6.34826103]
[1750449830102,8.10975042,2423.4,2423.3,6.34826103]
[1750449830242,8.10976966,2423.4,2423.3,6.34826103]
[1750449830597,18.10977263,2423.4,2423.3,2.2217]
[1750449830793,0.7806,2423.0,2422.6,4.12779622]
[1750449830955,0.0604,2422.7,2422.6,4.12779658]
[1750449831157,7.3334,2422.7,2422.6,4.12779658]
[1750449831361,8.10597577,2422.7,2422.6,4.12779658]
[1750449831760,7.71968926,2422.7,2422.6,4.12779658]
[1750449831960,8.10616028,2422.7,2422.6,4.12779658]
[1750449832287,8.10633594,2422.7,2422.6,4.12779658]
[1750449833788,8.10588659,2422.7,2422.6,4.12779658]
[1750449834314,0.77189712,2422.7,2422.6,4.98877416]
[1750449834494,9.252,2422.9,2422.8,4.12745583]
[1750449834700,10.02381394,2422.9,2422.8,4.12745583]
[1750449834860,9.63790697,2422.9,2422.8,4.12745583]
[1750449835295,9.63790395,2422.9,2422.8,4.12745583]
[1750449835477,9.63790395,2422.9,2422.8,5.48940977]
[1750449835679,9.63790391,2422.9,2422.8,5.44770977]
[1750449835915,9.63790343,2422.9,2422.8,5.44770977]
[1750449836216,9.63790323,2422.9,2422.8,5.44770977]
[1750449836366,9.252,2422.9,2422.8,5.44770977]
[1750449836568,1.981,2422.9,2422.8,5.46940977]
[1750449836904,9.251,2422.9,2422.8,6.28868079]
[1750449837201,0.7624,2423.7,2423.6,4.12609341]
[1750449837202,0.8228,2423.7,2423.6,4.12609341]
[1750449837377,21.06618511,2423.7,2423.6,4.12609341]
[1750449837563,21.06615005,2423.7,2423.6,4.12609341]
[1750449837758,20.7741059,2423.7,2423.6,4.12609341]
[1750449837958,20.0721059,2423.7,2423.6,4.12609341]
[1750449838197,20.30362059,2423.7,2423.6,4.12609341]
[1750449838404,20.3036252,2423.7,2423.6,4.12609341]
[1750449838764,20.30363056,2423.7,2423.6,4.12609341]
[1750449839204,20.30366397,2423.7,2423.6,4.12609341]
[1750449839500,20.30372057,2423.7,2423.6,4.12609341]
[1750449840180,20.07218475,2423.7,2423.6,4.12609341]
[1750449840698,20.06904958,2423.7,2423.6,4.12609341]
[1750449840865,20.06908377,2423.7,2423.6,4.12609341]
[1750449841481,20.06908349,2423.7,2423.6,4.12609341]
[1750449841702,20.06911724,2423.7,2423.6,4.12609341]
[1750449842009,22.78263621,2423.7,2423.6,4.12609341]
[1750449842508,22.55111724,2423.7,2423.6,4.12609341]
[1750449842806,22.55111724,2423.7,2423.6,4.11627341]
[1750449843383,10.0,2423.6,2423.5,4.12618371]
[1750449843582,10.83208912,2423.6,2423.5,4.12618371]
[1750449843787,0.83209524,2423.6,2423.5,4.12618371]
[1750449844699,0.83211192,2423.6,2423.5,4.12618371]
[1750449844870,0.44624456,2423.6,2423.5,4.12618371]
[1750449845072,0.83211197,2423.6,2423.4,4.12633516]
[1750449845404,8.03571197,2423.5,2423.4,4.12633516]
[1750449845611,8.09611197,2423.5,2423.4,4.12633516]
[1750449846211,8.09604059,2423.5,2423.4,4.12633516]
[1750449846611,8.09606871,2423.5,2423.4,4.12633516]
[1750449847673,8.03566871,2423.5,2423.4,4.12633516]
[1750449848213,8.03568849,2423.5,2423.4,4.12633516]
[1750449848424,0.77168849,2423.5,2423.4,4.12633516]
[1750449848624,10.00163945,2423.5,2423.4,5.25159232]
[1750449848800,9.23,2423.5,2423.4,5.25159232]
[1750449849003,7.64480456,2423.5,2423.4,6.06479232]
[1750449849895,0.38580456,2423.5,2423.4,6.06479232]
[1750449850095,11.97,2423.8,2423.7,4.12592317]
[1750449850398,20.00048646,2423.8,2423.7,4.12592317]
[1750449850596,20.00048586,2423.8,2423.7,4.12592317]
[1750449850891,20.06090674,2423.8,2423.7,4.12592317]
[1750449851738,20.06087161,2423.8,2423.7,4.12592317]
[1750449851898,22.54287161,2423.8,2423.7,4.12592317]
[1750449852092,0.0604,2423.7,2423.6,4.12596785]
[1750449852408,3.31383989,2423.7,2423.6,4.12596785]
[1750449853532,3.31385267,2423.7,2423.6,4.12596785]
[1750449854230,3.31388494,2423.7,2423.6,4.12596785]
[1750449854412,2.92814247,2423.7,2423.6,4.12596785]
[1750449854617,10.5678545,2423.7,2423.6,4.12596785]
[1750449854813,12.4774545,2423.7,2423.6,4.12596785]
[1750449856290,9.9954545,2423.7,2423.6,4.12596785]
[1750449856495,2.7414545,2423.7,2423.6,4.12596785]
[1750449856730,9.9954545,2423.7,2423.6,4.12596785]
[1750449856936,2.7414545,2423.7,2423.6,6.34766785]
[1750449857237,7.252,2423.7,2423.6,6.34766785]
[1750449857410,7.63768761,2423.7,2423.6,6.34766785]
[1750449857732,7.63764672,2423.7,2423.6,6.34766785]
[1750449857935,7.63764669,2423.7,2423.6,6.34766785]
[1750449858530,7.63760663,2423.7,2423.6,6.34766785]
[1750449859032,7.63760619,2423.7,2423.6,6.34766785]
[1750449859228,7.252,2423.7,2423.6,6.34766785]
[1750449859432,7.63760498,2423.7,2423.6,6.34766785]
[1750449860122,7.63760495,2423.7,2423.6,6.34766785]
[1750449860322,7.252,2423.7,2423.6,6.34766785]
[1750449860524,7.63757529,2423.7,2423.6,6.34766785]
[1750449861331,7.69417529,2423.7,2423.6,6.34766785]
[1750449861536,7.6942396,2423.7,2423.6,6.34766785]
[1750449861696,7.69423984,2423.7,2423.6,6.34766785]
[1750449862138,7.69424237,2423.7,2423.6,6.34766785]
[1750449862948,7.69424367,2423.7,2423.6,6.34766785]
[1750449863472,10.56241346,2423.7,2423.6,4.12609341]
[1750449863678,10.0,2423.6,2423.2,2.2217]
[1750449863880,12.52641346,2423.5,2423.4,4.12643393]
[1750449864189,12.37250877,2423.5,2423.4,4.12643393]
[1750449864393,12.51600116,2423.5,2423.4,4.12643393]
[1750449864681,12.12983137,2423.5,2423.4,4.12643393]
[1750449865050,9.97744189,2423.5,2423.4,4.12643393]
[1750449865376,9.97642207,2423.5,2423.4,4.12643393]
[1750449865743,9.97655464,2423.5,2423.4,4.12643393]
[1750449865960,10.82445464,2423.5,2423.4,4.12643393]
[1750449866751,10.82445464,2423.5,2423.3,4.12656444]
[1750449866752,0.0566,2423.4,2423.3,4.12652972]
[1750449866952,3.3299,2423.5,2423.4,4.12643393]
[1750449867155,13.30557224,2423.5,2423.4,4.12643393]
[1750449868184,23.47297132,2423.5,2423.3,4.12647095]
[1750449868366,0.82927224,2423.4,2423.3,4.12647095]
[1750449868681,0.82932387,2423.4,2423.3,4.12647095]
[1750449869181,0.82930187,2423.4,2423.3,4.12647095]
[1750449869362,0.82926208,2423.4,2423.3,4.12647095]
[1750449869839,0.82926247,2423.4,2423.3,4.12647095]
[1750449870041,0.8292629,2423.4,2423.3,4.12647095]
[1750449871153,0.82926106,2423.4,2423.3,4.12647095]
[1750449871672,0.0566,2423.3,2423.2,4.12675388]
[1750449871863,10.16495325,2423.3,2423.2,4.12675388]
[1750449872065,10.55130648,2423.3,2423.2,4.12675388]
[1750449872576,10.55124225,2423.3,2423.2,4.12675388]
[1750449872938,10.55118149,2423.3,2423.2,4.12675388]
[1750449873256,10.16488692,2423.3,2423.2,4.12675388]
[1750449873472,10.55116852,2423.3,2423.2,5.42675388]
[1750449873670,10.5511634,2423.3,2423.2,5.42675388]
[1750449874041,12.5091634,2423.3,2423.2,5.42675388]
[1750449874244,3.3111634,2423.3,2423.2,5.42675388]
[1750449874569,12.50810888,2423.3,2423.2,5.42675388]
[1750449874957,12.50806256,2423.3,2423.2,5.42675388]
[1750449875681,3.31106256,2423.3,2423.2,5.42675388]
[1750449875999,0.77246256,2423.3,2423.2,7.21081945]
[1750449876294,9.196,2423.6,2423.5,4.12626366]
[1750449876446,9.96824446,2423.6,2423.5,4.12626366]
[1750449877188,9.58212584,2423.6,2423.5,4.12626366]
[1750449877345,10.02485168,2423.6,2423.5,4.12626366]
[1750449878079,10.02486297,2423.6,2423.5,4.12626366]
[1750449878883,9.96826297,2423.6,2423.5,4.12626366]
[1750449879177,9.96823725,2423.6,2423.5,4.12626366]
[1750449879990,9.2526,2423.6,2423.5,4.12626366]
[1750449880299,2.7312059,2423.6,2423.5,4.93206366]
[1750449880463,9.9642059,2423.6,2423.5,4.93206366]
[1750449880650,9.96418176,2423.6,2423.5,4.93206366]
[1750449880848,9.9666,2423.9,2423.8,4.12575294]
[1750449881052,19.87414682,2423.9,2423.8,4.12575294]
[1750449881253,19.87414517,2423.9,2423.8,4.12575294]
[1750449881783,22.41274517,2423.9,2423.8,4.12575294]
[1750449881980,22.02667341,2423.9,2423.8,4.12575294]
[1750449882187,22.4127483,2423.9,2423.8,4.12575294]
[1750449882347,22.96265114,2423.9,2423.8,4.12575294]
[1750449882546,22.9049506,2423.9,2423.8,4.12575294]
[1750449882799,13.3279753,2423.9,2423.8,4.12575294]
[1750449882948,22.90393635,2423.9,2423.8,4.12575294]
[1750449883149,13.71393635,2423.9,2423.8,4.12575294]
[1750449883372,13.71394327,2423.9,2423.8,4.12575294]
[1750449883572,23.72974327,2423.9,2423.8,4.12575294]
[1750449883853,23.72974917,2423.9,2423.8,4.12575294]
[1750449884288,23.34377511,2423.9,2423.8,4.12575294]
[1750449884478,23.72968519,2423.9,2423.8,4.12575294]
[1750449885000,23.72768519,2423.9,2423.8,4.12575294]
[1750449885150,14.53968519,2423.9,2423.8,4.12575294]
[1750449885346,23.72768519,2423.9,2423.8,4.12575294]
[1750449885592,10.68188519,2423.9,2423.8,4.90465294]
[1750449885806,0.2231444,2424.3,2424.2,4.12507218]
[1750449886095,10.18279694,2424.3,2424.2,4.90397218]
[1750449886294,10.18234174,2424.3,2424.2,4.90397218]
[1750449886987,10.18234174,2424.3,2424.2,4.12507218]
[1750449887500,10.18188578,2424.3,2424.2,4.12507218]
[1750449888604,0.6124,2424.1,2424.0,4.12526506]
[1750449888802,8.60990912,2424.1,2424.0,4.12526506]
[1750449889583,0.77031025,2424.1,2424.0,4.12526506]
[1750449889810,9.56916829,2424.1,2424.0,4.90996506]
[1750449890115,9.56913863,2424.1,2424.0,4.90996506]
[1750449890328,9.184,2424.1,2424.0,4.90996506]
[1750449890473,10.18138704,2424.1,2424.0,5.42526506]
[1750449890673,9.7964,2424.1,2424.0,5.42526506]
[1750449890987,10.56643559,2424.1,2424.0,5.42526506]
[1750449891483,10.56644078,2424.1,2424.0,5.42526506]
[1750449892003,10.56644103,2424.1,2424.0,5.42526506]
[1750449893201,10.56635303,2424.1,2424.0,5.42526506]
[1750449893601,10.56626712,2424.1,2424.0,5.42526506]
[1750449893995,10.18133356,2424.1,2424.0,5.42526506]
[1750449894211,10.18133949,2424.1,2424.0,5.42526506]
[1750449894413,10.5662837,2424.1,2424.0,5.42526506]
[1750449895392,23.0482837,2424.1,2424.0,1.3]
[1750449895594,0.55,2423.6,2423.3,4.12649456]
[1750449895795,0.6124,2423.4,2423.3,4.12649456]
[1750449896125,0.0624,2423.2,2423.1,4.12687488]
[1750449896430,8.21745257,2423.2,2423.1,4.12687488]
[1750449896584,8.60251016,2423.2,2423.1,4.12687488]
[1750449896919,7.77,2423.2,2423.1,4.12687488]
[1750449897106,8.54008972,2423.2,2423.1,4.12687488]
[1750449897279,8.54004975,2423.2,2423.1,4.12687488]
[1750449897482,8.54004967,2423.2,2423.1,4.12687488]
[1750449898917,10.10100481,2423.2,2423.1,4.12687488]
[1750449899120,10.10093469,2423.2,2423.1,4.12687488]
[1750449899304,9.166,2423.2,2423.1,4.12687488]
[1750449900185,0.0624,2423.4,2423.3,4.12660421]
[1750449900427,1.3821905,2423.4,2423.3,4.12660421]
[1750449900581,0.7697905,2423.4,2423.3,5.54833979]
[1750449900785,9.9704,2423.9,2423.7,4.12582724]
[1750449901019,0.8321172,2423.8,2423.7,4.12582724]
[1750449901328,10.54711032,2423.8,2423.7,4.12582724]
[1750449901923,9.93471032,2423.8,2423.7,4.12582724]
[1750449902128,10.4848388,2423.8,2423.7,4.12582724]
[1750449902421,9.93387945,2423.8,2423.7,4.95100692]
[1750449903027,9.93388362,2423.8,2423.7,4.95100692]
[1750449903237,9.93296932,2423.8,2423.7,5.75870692]
[1750449903442,9.93295924,2423.8,2423.7,5.75870692]
[1750449903628,9.54801743,2423.8,2423.7,5.75870692]
[1750449903786,2.33301743,2423.8,2423.7,5.75870692]
[1750449903988,9.163,2423.8,2423.7,6.45870692]
[1750449904214,0.2231444,2424.3,2424.2,4.12507218]
[1750449904415,10.15632568,2424.3,2424.2,4.12507218]
[1750449904930,10.15532568,2424.3,2424.2,4.12507218]
[1750449905226,10.21774244,2424.3,2424.2,4.12507218]
[1750449905524,10.21774239,2424.3,2424.2,4.12507218]
[1750449905709,10.21774176,2424.3,2424.2,4.12507218]
[1750449906227,1.05571528,2424.3,2424.2,4.12507218]
[1750449906385,9.83264342,2424.3,2424.2,4.12507218]
[1750449906587,10.21771488,2424.3,2424.2,4.12507218]
[1750449906920,10.21768524,2424.3,2424.2,4.12507218]
[1750449907221,9.76821355,2424.3,2424.2,4.93377218]
[1750449907524,10.1533105,2424.3,2424.2,4.93377218]
[1750449907690,10.15333861,2424.3,2424.2,4.93377218]
[1750449908014,10.15335176,2424.3,2424.2,4.93377218]
[1750449908688,10.15335176,2424.3,2424.2,4.12507218]
[1750449909182,10.15334904,2424.3,2424.2,4.12507218]
[1750449910626,10.15333204,2424.3,2424.2,4.12507218]
[1750449910820,10.1533124,2424.3,2424.2,4.12507218]
[1750449911132,9.3831444,2424.3,2424.2,4.12507218]
[1750449912833,10.1533705,2424.3,2424.2,4.12507218]
[1750449914037,1.0557705,2424.3,2424.2,4.12507218]
[1750449914213,1.05564848,2424.3,2424.2,4.12507218]
[1750449914409,10.20864848,2424.3,2424.2,4.12507218]
[1750449915099,10.20872594,2424.3,2424.2,4.12507218]
[1750449915495,9.82359644,2424.3,2424.2,4.12507218]
[1750449915715,10.20871202,2424.3,2424.2,4.12507218]
[1750449916036,10.20879166,2424.3,2424.2,4.12507218]
[1750449916435,10.14639166,2424.3,2424.2,4.12507218]
[1750449916940,12.62839166,2424.3,2424.2,4.12507218]
[1750449917540,12.24326803,2424.3,2424.2,4.12507218]
[1750449918338,9.3741444,2424.3,2424.2,4.12507218]
[1750449919036,0.99353941,2424.3,2424.2,4.12507218]
[1750449919200,10.14353941,2424.3,2424.2,4.12507218]
[1750449920029,10.14362824,2424.3,2424.2,4.12507218]
[1750449920343,10.14368204,2424.3,2424.2,4.12507218]
[1750449920905,10.143675,2424.3,2424.2,4.12507218]
[1750449921413,9.75542592,2424.3,2424.2,4.12507218]
[1750449921619,10.14067447,2424.3,2424.2,4.12507218]
[1750449921942,10.14068452,2424.3,2424.2,4.12507218]
[1750449922317,10.14071856,2424.3,2424.2,4.12507218]
[1750449922741,9.75542592,2424.3,2424.2,4.12507218]
[1750449922905,10.14070971,2424.3,2424.2,4.12507218]
[1750449923106,10.20110971,2424.3,2424.2,4.12507218]
[1750449923403,10.20107569,2424.3,2424.2,4.12507218]
[1750449923606,10.20104394,2424.3,2424.2,4.12507218]
[1750449924020,10.2010445,2424.3,2424.2,4.12507218]
[1750449924241,9.3701444,2424.3,2424.2,4.12507218]
[1750449924447,10.14064486,2424.3,2424.2,4.12507218]
[1750449924747,10.14064684,2424.3,2424.2,4.12507218]
[1750449924946,10.2010458,2424.3,2424.2,4.12507218]
[1750449925134,10.20104278,2424.3,2424.2,4.12507218]
[1750449925448,10.20108041,2424.3,2424.2,4.12507218]
[1750449925942,10.20108041,2424.3,2424.1,6.34683798]
[1750449925943,0.0604,2424.2,2424.1,6.34683798]
[1750449926144,0.8309362,2424.2,2424.1,6.34683798]
[1750449926935,2.92768701,2424.2,2424.1,6.34683798]
[1750449927111,3.31325866,2424.2,2424.1,6.34683798]
[1750449927311,3.31354208,2424.2,2424.1,6.34683798]
[1750449928856,12.44412533,2424.2,2424.1,6.34683798]
[1750449929028,12.44470352,2424.2,2424.1,6.34683798]
[1750449930009,12.44469527,2424.2,2424.1,6.34683798]
[1750449930206,12.4446953,2424.2,2424.1,6.34683798]
[1750449930827,12.4446953,2424.2,2424.1,4.12513798]
[1750449931025,12.4447204,2424.2,2424.1,4.12513798]
[1750449931713,9.9003204,2424.2,2424.1,4.12513798]
[1750449931930,9.51414765,2424.2,2424.1,4.12513798]
[1750449932135,9.90055478,2424.2,2424.1,4.12513798]
[1750449933045,9.90112163,2424.2,2424.1,4.12513798]
[1750449933645,9.51440603,2424.2,2424.1,4.12513798]
[1750449933847,9.90111,2424.2,2424.1,4.12513798]
[1750449934048,9.51440603,2424.2,2424.1,4.12513798]
[1750449934353,9.90110987,2424.2,2424.1,4.12513798]
[1750449934967,9.901152,2424.2,2424.1,4.12513798]
[1750449935472,9.90115135,2424.2,2424.1,4.12513798]
[1750449935768,9.128,2424.2,2424.1,4.12513798]
[1750449935959,9.90149066,2424.2,2424.1,4.12513798]
[1750449936275,9.90149318,2424.2,2424.1,4.12513798]
[1750449937359,0.77349318,2424.2,2424.1,4.12513798]
[1750449937539,0.77349318,2424.2,2424.1,5.21359815]
[1750449937873,2.70949318,2424.2,2424.1,5.99984736]
[1750449938058,9.89526776,2424.2,2424.1,5.99984736]
[1750449938468,9.89527262,2424.2,2424.1,5.99984736]
[1750449938644,9.89526798,2424.2,2424.1,5.99984736]
[1750449940466,0.77326798,2424.2,2424.1,5.99984736]
[1750449940662,9.89318865,2424.2,2424.1,5.99984736]
[1750449941444,9.89311888,2424.2,2424.1,5.99984736]
[1750449942042,2.70911888,2424.2,2424.1,5.99984736]
[1750449942337,9.89210659,2424.2,2424.1,5.99984736]
[1750449942572,0.77301451,2424.2,2424.1,5.99984736]
[1750449942778,7.95393333,2424.2,2424.1,8.24214736]
[1750449943174,9.117,2424.3,2424.2,14.12507218]
[1750449943377,1.936,2424.3,2424.2,11.41193413]
[1750449943592,30.0,2425.6,2425.3,4.12319731]
[1750449943772,10.22399908,2425.4,2425.3,4.12319731]
[1750449943972,1.936,2425.5,2425.4,4.12303125]
[1750449944280,9.34642074,2425.5,2425.4,4.12303125]
[1750449944492,9.115,2425.5,2425.4,4.12303125]
[1750449944675,9.906,2425.6,2425.5,4.12286126]
[1750449944872,19.25240974,2425.6,2425.5,4.12286126]
[1750449945248,19.31280974,2425.6,2425.5,4.12286126]
[1750449945453,19.0814,2425.6,2425.5,4.12286126]
[1750449945668,19.0804,2425.6,2425.5,4.12286126]
[1750449945976,11.9024,2425.6,2425.5,4.12286126]
[1750449946197,19.0794,2425.6,2425.5,4.12286126]
[1750449947580,9.9664,2425.6,2425.5,4.12286126]
[1750449947755,19.0774,2425.6,2425.5,4.12286126]
[1750449948295,7.175,2425.6,2425.5,4.12286126]
[1750449948598,0.0625,2425.7,2425.6,4.12269129]
[1750449948757,19.1725,2425.7,2425.6,4.12269129]
[1750449949862,19.1715,2425.7,2425.6,4.12269129]
[1750449951180,10.0,2425.7,2425.6,4.12269129]
[1750449951372,19.109,2425.7,2425.6,4.12269129]
[1750449951560,19.1715,2425.7,2425.6,4.12269129]
[1750449951991,19.109,2425.7,2425.6,4.12269129]
[1750449952193,0.861,2426.0,2425.5,4.12286126]
[1750449952194,0.861,2426.0,2425.9,4.12218145]
[1750449952397,19.968,2426.0,2425.9,4.12218145]
[1750449952561,10.861,2426.0,2425.9,4.12218145]
[1750449952761,9.968,2426.0,2425.1,8.86514627]
[1750449952961,10.0,2425.7,2425.2,4.12332513]
[1750449953186,8.044,2425.6,2425.5,4.12286126]
[1750449953586,0.7856,2426.0,2425.3,4.12320125]
[1750449953787,1.936,2426.0,2425.9,4.12213775]
[1750449953987,9.105,2426.0,2425.9,4.12213775]
[1750449954190,19.105,2426.0,2425.9,4.12213775]
[1750449954499,9.105,2426.0,2425.9,4.12213775]
[1750449954878,9.104,2426.0,2425.9,4.12213775]
[1750449955275,1.936,2426.0,2425.9,4.12213775]
[1750449955569,21.83978864,2426.4,2426.3,4.12150187]
[1750449955770,31.69667177,2426.4,2426.3,4.12150187]
[1750449956078,31.31272979,2426.4,2426.3,4.12150187]
[1750449956400,31.69665844,2426.4,2426.3,4.12150187]
[1750449956563,22.54515844,2426.4,2426.3,4.12150187]
[1750449956763,24.14671729,2426.4,2426.3,8.86320187]
[1750449957076,21.69563003,2426.4,2426.3,8.86320187]
[1750449957397,17.07,2426.4,2426.3,8.86320187]
[1750449957973,17.1325,2426.4,2426.3,8.86320187]
[1750449958778,0.2231444,2426.7,2426.3,12.35508528]
[1750449958978,0.2231444,2426.7,2426.6,4.12099233]
[1750449959610,7.3861444,2426.7,2426.6,4.12099233]
[1750449960773,7.3851444,2426.7,2426.6,4.12099233]
[1750449960969,0.2231444,2426.7,2426.6,6.52270089]
[1750449961183,0.2231444,2426.7,2426.6,16.78790549]
[1750449961383,0.8332,2428.0,2427.0,0.0597]
[1750449961584,1.923,2427.8,2427.7,4.11912509]
[1750449961782,2.36801134,2427.8,2427.7,4.11912509]
[1750449962319,9.46551134,2427.8,2427.7,4.11912509]
[1750449962532,9.083,2427.8,2427.7,4.11912509]
[1750449962729,0.8957,2428.0,2427.7,4.11912509]
[1750449962730,0.8169,2428.3,2428.2,4.11827691]
[1750449962890,9.901,2428.4,2428.3,4.11810731]
[1750449963207,19.4279308,2428.4,2428.3,4.11810731]
[1750449963397,10.0,2428.3,2428.2,4.11815406]
[1750449963598,10.0625,2428.3,2428.2,4.11815406]
[1750449963973,1.52250828,2428.3,2427.5,4.11946446]
[1750449964174,0.38125345,2428.2,2427.8,0.812]
[1750449964483,7.158,2428.1,2427.8,4.11887997]
[1750449964790,7.158,2428.0,2427.9,4.11878578]
[1750449964983,7.2205,2428.0,2427.8,4.11883559]
[1750449965185,1.922,2427.9,2427.8,4.11883559]
[1750449965714,0.0625,2428.2,2428.1,4.11844652]
[1750449966013,0.0625,2428.2,2427.4,0.812]
[1750449966014,0.0625,2428.1,2427.8,4.1188991]
[1750449966184,0.0625,2427.9,2427.7,4.11899969]
[1750449966522,0.0625,2427.9,2427.7,4.11906668]
[1750449966720,0.0625,2427.9,2427.6,4.11920947]
[1750449966888,0.7576,2427.9,2427.6,4.11920947]
[1750449967076,0.0625,2427.8,2427.4,0.812]
[1750449967272,0.7576,2427.9,2427.8,4.11895543]
[1750449967477,0.8201,2427.9,2427.7,4.11905564]
[1750449967672,9.8961,2427.9,2427.4,0.812]
[1750449967900,9.8961,2427.9,2427.8,4.11895543]
[1750449968303,1.20090535,2427.9,2427.8,4.11895543]
[1750449968507,10.27590477,2427.9,2427.8,4.11895543]
[1750449969097,10.27590477,2427.9,2427.4,4.11955704]
[1750449969098,0.0625,2427.8,2427.4,4.11955704]
[1750449969415,9.8326,2427.9,2427.8,4.11895543]
[1750449969604,10.21341409,2427.9,2427.7,4.11904507]
[1750449969915,0.0625,2427.5,2426.9,4.12048292]
[1750449970083,7.152,2427.4,2426.9,4.12048292]
[1750449970278,1.922,2427.3,2427.2,4.11997363]
[1750449970478,2.30301946,2427.3,2427.2,4.11997363]
[1750449970711,1.922,2427.3,2427.2,4.11997363]
[1750449971014,1.922,2427.3,2426.7,4.934316]
[1750449971015,1.922,2427.3,2426.7,4.99389353]
[1750449971224,2.7164,2427.3,2427.2,4.11997363]
[1750449971376,3.15993584,2427.3,2427.2,4.11997363]
[1750449972009,3.09743584,2427.3,2426.7,0.8135]
[1750449972318,0.0625,2427.1,2426.9,4.12039034]
[1750449972552,7.151,2427.0,2426.9,4.12039034]
[1750449972840,10.0,2426.9,2426.5,0.7637]
[1750449973011,1.21201691,2426.8,2426.5,4.12108314]
[1750449973211,0.0625,2426.6,2426.5,4.12108314]
[1750449973439,10.44401691,2426.6,2426.3,4.12148422]
[1750449973598,0.38159902,2426.5,2426.3,4.12148282]
[1750449973798,0.38159902,2426.5,2425.6,4.12267247]
[1750449973799,7.59509902,2426.4,2425.7,4.94575731]
[1750449974038,7.59509902,2426.4,2426.2,4.12167175]
[1750449974039,1.59412552,2426.3,2426.2,4.12167175]
[1750449974217,1.27501711,2426.3,2426.2,4.12167175]
[1750449974412,1.27502027,2426.3,2426.2,4.12167175]
[1750449974625,1.65704632,2426.3,2426.2,4.12167175]
[1750449974836,1.65705237,2426.3,2426.2,4.12167175]
[1750449975045,1.65705254,2426.3,2426.2,4.12167175]
[1750449975209,9.83605254,2426.3,2426.2,4.12167175]
[1750449975405,9.45402233,2426.3,2426.2,4.12167175]
[1750449975732,9.45401292,2426.3,2426.2,4.12167175]
[1750449976044,9.45405828,2426.3,2426.2,4.12167175]
[1750449976218,9.83611386,2426.3,2426.2,4.12167175]
[1750449976415,9.89861396,2426.3,2426.2,4.12167175]
[1750449976616,9.89886471,2426.3,2426.2,4.12167175]